bitfinex-derivatives/quotes_BTCF0:USTF0_20250709
["timestamp","ask_amount","ask_price","bid_price","bid_amount"]
[1752070012253,0.2297374,109300.0,109290.0,1.20546359]
[1752070012458,0.001,109300.0,109290.0,1.18043373]
[1752070012759,0.00013695,109310.0,109300.0,0.1829574]
[1752070012957,0.00013695,109310.0,109300.0,1.78563925]
[1752070013158,0.00013695,109310.0,109300.0,2.2279367]
[1752070013354,0.01939619,109330.0,109320.0,0.1829239]
[1752070013559,0.20230329,109330.0,109320.0,0.6419824]
[1752070013755,0.21809329,109330.0,109320.0,0.27761361]
[1752070014055,0.57889329,109330.0,109320.0,0.27761361]
[1752070014256,0.59370329,109330.0,109320.0,0.27761361]
[1752070014663,0.60949329,109330.0,109320.0,0.27761361]
[1752070014964,0.24869329,109330.0,109320.0,0.27761361]
[1752070015258,0.01939619,109330.0,109320.0,0.6725824]
[1752070015457,0.01939619,109330.0,109320.0,0.7136797]
[1752070015862,0.01939619,109330.0,109320.0,0.7146797]
[1752070016361,0.01939619,109330.0,109320.0,0.7166797]
[1752070016554,0.01939619,109330.0,109320.0,1.1102797]
[1752070017669,0.01939619,109330.0,109320.0,1.1650761]
[1752070017960,0.20230339,109330.0,109320.0,1.1259788]
[1752070018162,0.01939619,109330.0,109320.0,1.82596358]
[1752070018865,0.01939619,109330.0,109320.0,1.86715625]
[1752070019966,0.20230339,109330.0,109320.0,1.86715625]
[1752070020366,0.01939619,109330.0,109320.0,1.86715625]
[1752070020768,0.20230339,109330.0,109320.0,1.50635211]
[1752070020960,0.20230339,109330.0,109320.0,1.78485466]
[1752070021160,0.01939619,109330.0,109320.0,1.86715211]
[1752070021362,0.01939619,109330.0,109320.0,2.5821209]
[1752070021862,1.2472874,109350.0,109340.0,0.1828905]
[1752070022063,0.5894074,109350.0,109340.0,0.67227613]
[1752070022368,0.6362974,109350.0,109340.0,0.21232905]
[1752070022568,0.6507074,109350.0,109340.0,0.23624905]
[1752070022769,1.2940974,109350.0,109340.0,0.66301784]
[1752070022968,1.2940974,109350.0,109340.0,0.69331784]
[1752070023271,1.2940974,109350.0,109340.0,0.70404096]
[1752070023971,1.2940974,109350.0,109340.0,0.67374096]
[1752070024170,1.3242974,109350.0,109340.0,0.67374096]
[1752070024472,1.3242974,109350.0,109340.0,0.66301784]
[1752070024663,1.3262974,109350.0,109340.0,0.67374098]
[1752070024864,0.6684974,109350.0,109340.0,0.67374098]
[1752070025058,1.3255774,109350.0,109340.0,0.67374098]
[1752070026063,0.07909,109350.0,109340.0,0.67819328]
[1752070026269,0.2619638,109350.0,109340.0,0.69249034]
[1752070026464,0.6227638,109350.0,109340.0,0.29752155]
[1752070027272,0.5925638,109350.0,109340.0,0.69249034]
[1752070027862,0.04889,109350.0,109340.0,0.72339034]
[1752070028072,0.002,109350.0,109340.0,0.75015157]
[1752070028575,0.1848738,109350.0,109340.0,0.75015157]
[1752070028962,0.1848738,109350.0,109340.0,0.75015088]
[1752070029470,0.1848738,109350.0,109340.0,0.70909259]
[1752070029973,0.2006638,109350.0,109340.0,0.70909259]
[1752070031377,0.01779,109350.0,109340.0,0.70909259]
[1752070031671,0.2006637,109350.0,109340.0,0.70909259]
[1752070032268,0.2006637,109350.0,109340.0,0.69837014]
[1752070033375,0.5614637,109350.0,109340.0,1.35549014]
[1752070033569,0.5931637,109350.0,109340.0,1.35549014]
[1752070033770,0.002,109350.0,109340.0,1.05917014]
[1752070033979,0.002,109350.0,109340.0,1.06989229]
[1752070034472,0.002,109350.0,109340.0,1.10022843]
[1752070035380,0.002,109350.0,109340.0,1.15497281]
[1752070035879,0.002,109350.0,109340.0,1.16569462]
[1752070039569,0.002,109350.0,109340.0,1.15055462]
[1752070040182,0.002,109350.0,109340.0,1.10949633]
[1752070040475,0.002,109350.0,109340.0,1.09877452]
[1752070041478,0.002,109350.0,109340.0,1.18107197]
[1752070041877,0.002,109350.0,109340.0,1.19179336]
[1752070042080,0.002,109350.0,109340.0,1.18107197]
[1752070042882,0.002,109350.0,109340.0,1.10231403]
[1752070043081,0.002,109350.0,109340.0,1.07839403]
[1752070043282,0.002,109350.0,109340.0,1.10191403]
[1752070043781,0.002,109350.0,109340.0,1.11263542]
[1752070044083,0.002,109350.0,109340.0,1.05789104]
[1752070044270,0.002,109350.0,109340.0,1.04716965]
[1752070046787,0.002,109350.0,109340.0,1.3633805]
[1752070047587,0.002,109350.0,109340.0,1.37410189]
[1752070048088,0.002,109360.0,109350.0,0.1828737]
[1752070048384,0.002,109360.0,109350.0,2.07882984]
[1752070048888,0.002,109360.0,109350.0,2.38882984]
[1752070049082,0.002,109360.0,109350.0,2.33408424]
[1752070049289,0.002,109360.0,109350.0,2.02408424]
[1752070050080,0.01963335,109370.0,109360.0,0.182857]
[1752070050277,0.01963335,109370.0,109360.0,1.4504401]
[1752070050479,0.01963335,109370.0,109360.0,1.39567581]
[1752070051288,0.03813335,109370.0,109360.0,0.35413814]
[1752070051482,0.9299845,109370.0,109360.0,0.33061814]
[1752070051786,0.9617845,109370.0,109360.0,0.25001767]
[1752070052085,0.9617845,109370.0,109360.0,0.30476085]
[1752070053289,0.9617845,109370.0,109360.0,0.30476151]
[1752070053784,0.9617845,109370.0,109360.0,0.12190451]
[1752070053987,0.9617845,109370.0,109360.0,0.30476151]
[1752070054188,0.9617845,109370.0,109360.0,0.25001833]
[1752070054794,0.9452845,109370.0,109360.0,0.23464833]
[1752070054987,0.9767845,109370.0,109360.0,0.23464833]
[1752070055489,0.9767845,109370.0,109360.0,0.22392716]
[1752070060092,1.29693365,109370.0,109360.0,0.55550801]
[1752070060292,1.29693365,109370.0,109360.0,0.23929716]
[1752070060494,1.6131445,109370.0,109360.0,0.23929716]
[1752070060792,1.6131445,109370.0,109360.0,0.22392716]
[1752070062388,1.6131445,109370.0,109360.0,0.23464908]
[1752070062795,1.6131445,109370.0,109360.0,0.22392716]
[1752070062994,1.6131445,109370.0,109360.0,0.23464908]
[1752070063486,1.6131445,109370.0,109360.0,0.23469805]
[1752070063687,1.5966445,109370.0,109360.0,0.23469805]
[1752070063990,1.5966445,109370.0,109360.0,0.25006805]
[1752070064295,1.28039365,109370.0,109360.0,0.5662789]
[1752070064701,0.62907365,109370.0,109360.0,0.5662789]
[1752070064992,1.29689365,109370.0,109360.0,0.56627837]
[1752070065188,1.29689365,109370.0,109360.0,0.58979837]
[1752070065189,1.28039365,109370.0,109360.0,0.58979837]
[1752070065388,1.28039365,109370.0,109360.0,0.62299837]
[1752070065889,1.28039365,109370.0,109360.0,0.62399837]
[1752070066195,1.27839365,109370.0,109360.0,0.62399837]
[1752070066398,0.62707365,109370.0,109360.0,0.62399837]
[1752070066591,1.27839365,109370.0,109360.0,0.62399837]
[1752070067097,1.24639365,109370.0,109360.0,0.62399837]
[1752070067599,1.24639365,109370.0,109360.0,0.67874155]
[1752070068099,1.24639365,109370.0,109360.0,0.67874137]
[1752070068289,0.0338,109370.0,109360.0,0.67874137]
[1752070068490,0.002,109370.0,109360.0,0.75211969]
[1752070069096,0.002,109370.0,109360.0,1.05817651]
[1752070070496,0.1848402,109370.0,109360.0,1.08473912]
[1752070070892,0.1848402,109370.0,109360.0,0.72393912]
[1752070071094,0.1848402,109370.0,109360.0,0.69728976]
[1752070071500,0.1848402,109370.0,109360.0,1.34852976]
[1752070071995,0.002,109370.0,109360.0,1.34852976]
[1752070073899,0.002,109370.0,109360.0,1.34852952]
[1752070074605,0.002,109370.0,109360.0,1.70932952]
[1752070075099,0.37818237,109390.0,109380.0,0.8152452]
[1752070075301,0.01738237,109390.0,109380.0,1.28137105]
[1752070075496,0.01738237,109390.0,109380.0,1.34597105]
[1752070076196,0.01738237,109390.0,109380.0,1.36264089]
[1752070076396,0.02238237,109390.0,109380.0,1.36264089]
[1752070076597,0.02238237,109390.0,109380.0,1.37335938]
[1752070077196,0.005,109390.0,109380.0,2.02451938]
[1752070077397,0.005,109390.0,109380.0,2.0792254]
[1752070077793,0.002,109390.0,109380.0,2.0792254]
[1752070078305,0.002,109390.0,109380.0,1.76301455]
[1752070080001,0.64197384,109400.0,109390.0,0.1828068]
[1752070080297,0.65758384,109400.0,109390.0,0.26364261]
[1752070080502,0.65758384,109400.0,109390.0,0.29494261]
[1752070080706,0.61188624,109400.0,109390.0,0.29494261]
[1752070081301,0.61388624,109400.0,109390.0,0.29494261]
[1752070082295,0.91251145,109400.0,109390.0,0.2539368]
[1752070082603,0.94301145,109400.0,109390.0,0.1993768]
[1752070083508,0.1828068,109390.0,109380.0,0.50199293]
[1752070083702,0.93812765,109390.0,109380.0,0.52928134]
[1752070083910,0.93812765,109390.0,109380.0,0.51856293]
[1752070084104,0.6219168,109390.0,109380.0,0.51856293]
[1752070084303,1.2729168,109390.0,109380.0,0.51856293]
[1752070084900,0.43911,109390.0,109380.0,0.51856293]
[1752070085108,0.04651,109390.0,109380.0,0.8454925]
[1752070085305,0.04651,109390.0,109380.0,0.8464925]
[1752070085807,0.04651,109390.0,109380.0,0.79037553]
[1752070086201,0.04651,109390.0,109380.0,0.46485691]
[1752070086401,0.04651,109390.0,109380.0,0.78106776]
[1752070086702,0.40731,109390.0,109380.0,0.78106776]
[1752070087218,0.40731,109390.0,109380.0,0.46485691]
[1752070087403,0.40731,109390.0,109380.0,0.78106776]
[1752070088805,0.04651,109390.0,109380.0,0.78106776]
[1752070089302,1.2283504,109400.0,109390.0,0.1828069]
[1752070089508,1.2588504,109400.0,109390.0,0.53884775]
[1752070090512,1.2608504,109400.0,109390.0,0.53884775]
[1752070090701,1.2608504,109400.0,109390.0,0.2226369]
[1752070090907,1.2608504,109400.0,109390.0,0.1993769]
[1752070091311,1.59206125,109400.0,109390.0,0.1993769]
[1752070091512,1.59206125,109400.0,109390.0,0.1828069]
[1752070092016,1.2758504,109400.0,109390.0,0.1828069]
[1752070092217,1.59206125,109400.0,109390.0,0.1828069]
[1752070092510,1.57706125,109400.0,109390.0,0.1828069]
[1752070092706,1.2608504,109400.0,109390.0,0.1993769]
[1752070092907,1.57706125,109400.0,109390.0,0.1993769]
[1752070093304,1.59206125,109400.0,109390.0,0.1828069]
[1752070094115,1.72916175,109400.0,109390.0,0.1828069]
[1752070094321,1.77486295,109400.0,109390.0,0.1828069]
[1752070094723,1.79221721,109400.0,109390.0,0.1828069]
[1752070095823,0.1828069,109390.0,109380.0,0.36092691]
[1752070096022,0.93812775,109390.0,109380.0,0.37164626]
[1752070096319,0.93812775,109390.0,109380.0,0.23923295]
[1752070096519,0.95312775,109390.0,109380.0,0.23923295]
[1752070097014,1.2727169,109390.0,109380.0,0.23923295]
[1752070097208,1.2727169,109390.0,109380.0,0.25680295]
[1752070097517,1.58892775,109390.0,109380.0,0.2460836]
[1752070097721,1.58892775,109390.0,109380.0,0.2295136]
[1752070097914,1.58892775,109390.0,109380.0,0.2460836]
[1752070098221,1.58892775,109390.0,109380.0,0.25680327]
[1752070098523,1.58892775,109390.0,109380.0,0.2460836]
[1752070098718,1.60392775,109390.0,109380.0,0.2295136]
[1752070098920,1.60392775,109390.0,109380.0,0.001]
[1752070101830,1.78676775,109390.0,109380.0,0.001]
[1752070103627,1.60392775,109390.0,109380.0,0.001]
[1752070103823,0.1828236,109380.0,109370.0,0.00013695]
[1752070104023,1.2576353,109380.0,109370.0,0.00013695]
[1752070104327,1.2726353,109380.0,109370.0,0.00013695]
[1752070104726,0.95642445,109380.0,109370.0,0.00013695]
[1752070105323,1.2726353,109380.0,109370.0,0.00013695]
[1752070105629,1.2817622,109380.0,109370.0,0.00013695]
[1752070105930,1.2817622,109380.0,109370.0,0.00513695]
[1752070106326,1.4646182,109380.0,109370.0,0.00513695]
[1752070109028,1.4676182,109380.0,109370.0,0.00313695]
[1752070109421,1.4706182,109380.0,109370.0,0.00013695]
[1752070109734,1.2877622,109380.0,109370.0,0.00013695]
[1752070111529,1.2877622,109380.0,109350.0,0.1828726]
[1752070111530,0.1828571,109360.0,109350.0,0.1828726]
[1752070111734,1.90287795,109360.0,109350.0,0.1828726]
[1752070111924,1.96417795,109360.0,109350.0,0.1828726]
[1752070113430,1.96417795,109360.0,109350.0,0.1838726]
[1752070113723,1.96417795,109360.0,109350.0,0.001]
[1752070115329,2.04018068,109360.0,109350.0,0.001]
[1752070115723,0.1828738,109350.0,109340.0,0.3503423]
[1752070116023,0.90937465,109350.0,109340.0,0.3503423]
[1752070116223,0.89288465,109350.0,109340.0,0.3658523]
[1752070116430,0.90937465,109350.0,109340.0,0.3658523]
[1752070116620,0.5931638,109350.0,109340.0,0.3658523]
[1752070116821,0.90937465,109350.0,109340.0,0.3668523]
[1752070117625,0.90937465,109350.0,109340.0,0.3969523]
[1752070120330,1.55997465,109350.0,109340.0,0.3969523]
[1752070121332,1.55997465,109350.0,109340.0,0.41102777]
[1752070121724,1.2437638,109350.0,109340.0,0.3512301]
[1752070121924,1.55997465,109350.0,109340.0,0.2597886]
[1752070122220,1.57497465,109350.0,109340.0,0.0313]
[1752070122422,1.9220855,109350.0,109340.0,0.001]
[1752070123834,1.60587465,109350.0,109340.0,0.001]
[1752070124031,1.60587465,109350.0,109340.0,0.1838909]
[1752070124232,0.95527465,109350.0,109340.0,0.1838909]
[1752070124430,0.37729,109350.0,109340.0,0.56884175]
[1752070124629,1.1941941,109350.0,109340.0,0.59944175]
[1752070125028,1.1941941,109350.0,109340.0,0.2832309]
[1752070125532,1.1941941,109350.0,109340.0,0.59944175]
[1752070125732,1.1941941,109350.0,109340.0,0.2832309]
[1752070128028,1.1941941,109350.0,109340.0,0.2445909]
[1752070128229,1.1941941,109350.0,109340.0,0.2832309]
[1752070129434,1.51040495,109350.0,109340.0,0.2832309]
[1752070131234,1.51040495,109350.0,109340.0,0.29395445]
[1752070131823,0.5436741,109350.0,109340.0,0.29395445]
[1752070132027,1.2103141,109350.0,109340.0,0.6101653]
[1752070132236,1.2103141,109350.0,109340.0,0.29395445]
[1752070132438,1.52652495,109350.0,109340.0,0.29395445]
[1752070132636,1.52652495,109350.0,109340.0,0.2832309]
[1752070133136,1.51024495,109350.0,109340.0,0.2843409]
[1752070133333,1.51024495,109350.0,109340.0,0.3253323]
[1752070133728,1.1940341,109350.0,109340.0,0.3253323]
[1752070135343,1.1940341,109350.0,109340.0,0.33605562]
[1752070135531,1.1940341,109350.0,109340.0,0.33605567]
[1752070135733,1.1940341,109350.0,109340.0,0.3253323]
[1752070136240,1.1940341,109350.0,109340.0,0.33605572]
[1752070136440,1.1940341,109350.0,109340.0,0.33605575]
[1752070136941,1.1940341,109350.0,109340.0,0.6522666]
[1752070137532,1.011,109350.0,109340.0,0.6522666]
[1752070138739,1.011,109350.0,109340.0,0.33605575]
[1752070138740,1.1938751,109350.0,109340.0,0.33605575]
[1752070139037,1.011,109350.0,109340.0,0.6522666]
[1752070139439,0.5762586,109360.0,109350.0,0.1828754]
[1752070139746,1.54258945,109360.0,109350.0,0.2856254]
[1752070139944,0.49175563,109370.0,109360.0,0.1828588]
[1752070140128,1.2114485,109370.0,109360.0,0.54736965]
[1752070140332,1.2114085,109370.0,109360.0,0.60311965]
[1752070141135,1.0285664,109370.0,109360.0,0.60311965]
[1752070141341,1.2114085,109370.0,109360.0,0.60311965]
[1752070141931,1.2144085,109370.0,109360.0,0.61384158]
[1752070142531,1.2144085,109370.0,109360.0,0.65483298]
[1752070142937,1.2174085,109370.0,109360.0,0.65483298]
[1752070143644,0.0236864,109370.0,109360.0,0.65483298]
[1752070143941,0.6736464,109370.0,109360.0,0.709539]
[1752070144140,0.6736464,109370.0,109360.0,0.65483298]
[1752070144741,0.6736464,109370.0,109360.0,0.33862213]
[1752070144929,1.0314464,109370.0,109360.0,0.65483298]
[1752070145133,1.2142885,109370.0,109360.0,0.65483298]
[1752070145336,1.2142885,109370.0,109360.0,0.66406477]
[1752070145531,1.2112885,109370.0,109360.0,0.39332815]
[1752070145744,1.55959935,109370.0,109360.0,0.37017815]
[1752070146231,1.55959935,109370.0,109360.0,0.28387213]
[1752070146436,1.59029935,109370.0,109360.0,0.25117213]
[1752070146640,1.59029935,109370.0,109360.0,0.06831333]
[1752070146941,1.60529935,109370.0,109360.0,0.05271309]
[1752070147132,1.60529935,109370.0,109360.0,0.001]
[1752070148738,0.1828756,109350.0,109340.0,0.09569742]
[1752070148945,1.88672645,109350.0,109340.0,0.27858972]
[1752070149139,1.91742645,109350.0,109340.0,0.27858972]
[1752070149542,1.98912585,109350.0,109340.0,0.27858972]
[1752070149742,1.98912585,109350.0,109340.0,0.28358972]
[1752070150143,1.98912585,109350.0,109340.0,0.2444837]
[1752070150144,0.9514556,109350.0,109340.0,0.2444837]
[1752070150448,1.91742645,109350.0,109340.0,0.2288837]
[1752070150947,1.91742645,109350.0,109340.0,0.2318837]
[1752070151244,0.3608,109350.0,109340.0,0.56369455]
[1752070151540,0.3758,109360.0,109350.0,0.1828756]
[1752070151740,1.04176,109360.0,109350.0,0.56148645]
[1752070151946,1.02548,109360.0,109350.0,0.56148645]
[1752070152347,1.01048,109360.0,109350.0,0.56148645]
[1752070152541,1.01048,109360.0,109350.0,0.60123645]
[1752070153048,1.01048,109360.0,109350.0,0.60323645]
[1752070153749,1.01048,109360.0,109350.0,0.60523645]
[1752070153750,0.64968,109360.0,109350.0,0.60523645]
[1752070154047,1.02676,109360.0,109350.0,0.60523645]
[1752070154251,1.2096189,109360.0,109350.0,0.60523645]
[1752070154548,1.2096189,109360.0,109350.0,0.61595862]
[1752070154956,1.02676,109360.0,109350.0,0.61595862]
[1752070155340,0.66596,109360.0,109350.0,0.61595862]
[1752070155745,1.02676,109360.0,109350.0,0.61595862]
[1752070156249,0.37708,109360.0,109350.0,0.61595862]
[1752070156548,1.02668,109360.0,109350.0,0.61595862]
[1752070157147,0.66588,109360.0,109350.0,0.61595862]
[1752070157341,1.2095389,109360.0,109350.0,0.65695002]
[1752070157850,1.2095389,109360.0,109350.0,0.61595862]
[1752070158240,1.02668,109360.0,109350.0,0.34073917]
[1752070158441,1.02668,109360.0,109350.0,0.65695002]
[1752070159647,1.02668,109360.0,109350.0,0.34073917]
[1752070159950,1.02668,109360.0,109350.0,0.65695002]
[1752070160147,1.0104,109360.0,109350.0,0.65695002]
[1752070163155,1.1932589,109360.0,109350.0,0.65695002]
[1752070163452,1.2248589,109360.0,109350.0,0.65695002]
[1752070163853,1.042,109360.0,109350.0,0.65695002]
[1752070164050,1.2248589,109360.0,109350.0,0.67083387]
[1752070164250,1.2563589,109360.0,109350.0,0.67083387]
[1752070164750,1.2563589,109360.0,109350.0,0.28257312]
[1752070164963,1.57256975,109360.0,109350.0,0.25453944]
[1752070165149,1.57256975,109360.0,109350.0,0.23858944]
[1752070165348,1.57256975,109360.0,109350.0,0.25453944]
[1752070165754,1.57256975,109360.0,109350.0,0.23858944]
[1752070166256,1.57256975,109360.0,109350.0,0.25453944]
[1752070166856,1.0735,109360.0,109350.0,0.59551029]
[1752070167055,1.2563589,109360.0,109350.0,0.59551029]
[1752070167355,1.2563589,109360.0,109350.0,0.62851029]
[1752070167656,1.2563589,109360.0,109350.0,0.31229944]
[1752070168256,1.2563589,109360.0,109350.0,0.31029944]
[1752070168450,1.2563589,109360.0,109350.0,0.31229944]
[1752070168651,1.2563589,109360.0,109350.0,0.28753944]
[1752070168852,1.57256975,109360.0,109350.0,0.25453944]
[1752070169256,1.2563589,109360.0,109350.0,0.23858944]
[1752070169655,1.57256975,109360.0,109350.0,0.23858944]
[1752070169858,1.57256975,109360.0,109350.0,0.23658944]
[1752070170054,1.57256975,109360.0,109350.0,0.25253944]
[1752070170460,1.57256975,109360.0,109350.0,0.23658944]
[1752070170654,1.57256975,109360.0,109350.0,0.23458944]
[1752070170848,1.57256975,109360.0,109350.0,0.23459004]
[1752070171052,1.58756975,109360.0,109350.0,0.23459004]
[1752070173262,0.92296975,109360.0,109350.0,0.25054004]
[1752070173448,1.57200975,109360.0,109350.0,0.25054004]
[1752070173655,1.2716989,109360.0,109350.0,0.25054004]
[1752070174365,1.58790975,109360.0,109350.0,0.25054004]
[1752070176568,1.58790975,109360.0,109350.0,0.2398177]
[1752070178556,1.2716989,109360.0,109350.0,0.2398177]
[1752070178755,1.58790975,109360.0,109350.0,0.2398177]
[1752070179169,1.58790975,109360.0,109350.0,0.2238677]
[1752070179369,1.60290975,109360.0,109350.0,0.2238677]
[1752070181457,1.2866989,109360.0,109350.0,0.2238677]
[1752070181656,1.60290975,109360.0,109350.0,0.05171456]
[1752070181865,1.60290975,109360.0,109350.0,0.01072316]
[1752070182161,0.1828769,109350.0,109340.0,0.0409914]
[1752070182459,1.2719986,109350.0,109340.0,0.0409914]
[1752070182658,0.1828936,109340.0,109330.0,0.05470602]
[1752070182863,1.58672928,109340.0,109330.0,0.05470602]
[1752070183362,1.27051843,109340.0,109330.0,0.23761642]
[1752070183565,1.58672928,109340.0,109330.0,0.23761642]
[1752070183859,1.58672928,109340.0,109330.0,0.05470602]
[1752070184064,1.58672928,109340.0,109330.0,0.23961642]
[1752070184266,1.58672928,109340.0,109330.0,0.05670602]
[1752070184660,1.58672928,109340.0,109330.0,0.05870602]
[1752070185367,1.596129,109340.0,109330.0,0.05870602]
[1752070185869,1.31231815,109340.0,109330.0,0.05870602]
[1752070186060,1.628529,109340.0,109330.0,0.05870602]
[1752070186864,1.628529,109340.0,109330.0,0.07284516]
[1752070188273,1.628529,109340.0,109330.0,0.01813914]
[1752070188771,1.628529,109340.0,109330.0,0.004]
[1752070190166,0.18291,109330.0,109320.0,0.03392941]
[1752070190361,0.92180085,109330.0,109320.0,0.03392941]
[1752070190564,0.92180085,109330.0,109320.0,0.00182941]
[1752070190765,0.1829267,109320.0,109310.0,0.00182958]
[1752070191066,0.1829267,109320.0,109300.0,0.05470602]
[1752070191067,0.1829435,109310.0,109300.0,0.0321]
[1752070191263,0.93773435,109310.0,109300.0,0.0321]
[1752070191464,0.95273435,109310.0,109300.0,0.0321]
[1752070192066,0.1829602,109300.0,109290.0,0.1829763]
[1752070192375,1.53841105,109300.0,109290.0,0.1988163]
[1752070192669,1.53841105,109300.0,109290.0,0.2300163]
[1752070193465,1.53941105,109300.0,109290.0,0.2300163]
[1752070193869,1.54041105,109300.0,109290.0,0.2300163]
[1752070194775,1.2242002,109300.0,109290.0,0.2300163]
[1752070194969,1.54041105,109300.0,109290.0,0.2300163]
[1752070195970,1.54041105,109300.0,109290.0,0.2600163]
[1752070196169,0.3628,109300.0,109290.0,0.915138]
[1752070196376,0.8333203,109300.0,109290.0,0.59892715]
[1752070196676,0.65036,109300.0,109290.0,0.59892715]
[1752070196874,0.65036,109300.0,109290.0,0.61302896]
[1752070197771,1.54178597,109300.0,109290.0,0.27511841]
[1752070197975,1.57258597,109300.0,109290.0,0.22927841]
[1752070198168,1.58758597,109300.0,109290.0,0.04630181]
[1752070198579,1.58758597,109300.0,109290.0,0.22927841]
[1752070198775,1.58758597,109300.0,109290.0,0.04630181]
[1752070199173,1.90379682,109300.0,109290.0,0.01410181]
[1752070199368,1.62078597,109300.0,109290.0,0.01410181]
[1752070199874,1.62178597,109300.0,109290.0,0.01410181]
[1752070200573,1.27469512,109300.0,109290.0,0.01410181]
[1752070200878,1.68562431,109300.0,109290.0,0.01410181]
[1752070201877,1.28969512,109300.0,109290.0,0.01410181]
[1752070202080,1.68562431,109300.0,109290.0,0.01410181]
[1752070202783,0.1829937,109280.0,109270.0,0.00183024]
[1752070202974,3.01026695,109280.0,109270.0,0.00183024]
[1752070203174,3.07416695,109280.0,109270.0,0.00183024]
[1752070203481,2.67823776,109280.0,109270.0,0.00183024]
[1752070204281,2.69323776,109280.0,109270.0,0.00183024]
[1752070204479,0.96824857,109280.0,109270.0,0.18484064]
[1752070204784,2.26564857,109280.0,109270.0,0.20068064]
[1752070204972,2.23424857,109280.0,109270.0,0.26308064]
[1752070205677,2.23524857,109280.0,109270.0,0.26608064]
[1752070205877,0.75573487,109280.0,109270.0,0.68470983]
[1752070206077,1.40397487,109280.0,109270.0,0.68470983]
[1752070206580,1.58696847,109280.0,109270.0,0.28778064]
[1752070206770,1.58696847,109280.0,109270.0,0.26508044]
[1752070206971,2.02919766,109280.0,109270.0,0.23318044]
[1752070207685,2.01419766,109280.0,109270.0,0.23318044]
[1752070207982,1.61822847,109280.0,109270.0,0.23318044]
[1752070208182,1.61822847,109280.0,109270.0,0.26368044]
[1752070208577,1.61857256,109280.0,109270.0,0.26368044]
[1752070209985,0.97037256,109280.0,109270.0,0.26368044]
[1752070210185,1.61857256,109280.0,109270.0,0.26368044]
[1752070211182,1.63357256,109280.0,109270.0,0.23318044]
[1752070211389,2.02950175,109280.0,109270.0,0.03433024]
[1752070211690,2.02950175,109280.0,109270.0,0.21734074]
[1752070211875,2.06090175,109280.0,109270.0,0.03433024]
[1752070212080,2.02931909,109280.0,109270.0,0.21734074]
[1752070212280,2.01431909,109280.0,109270.0,0.21734074]
[1752070212480,1.6183499,109280.0,109270.0,0.23318074]
[1752070212779,1.6183499,109280.0,109270.0,0.26478074]
[1752070213287,2.02927909,109280.0,109270.0,0.00383024]
[1752070213488,2.06097909,109280.0,109270.0,0.00383024]
[1752070214187,2.06097909,109280.0,109270.0,0.18684074]
[1752070214887,1.6650499,109280.0,109270.0,0.21704074]
[1752070215187,2.02927909,109280.0,109270.0,0.21704074]
[1752070215386,1.6333499,109280.0,109270.0,0.21704074]
[1752070215690,1.6182699,109280.0,109270.0,0.23288074]
[1752070215891,0.9701899,109280.0,109270.0,0.26328074]
[1752070216085,1.58697,109280.0,109270.0,0.68190993]
[1752070216786,1.58697,109280.0,109270.0,0.28598074]
[1752070217291,1.58697,109280.0,109270.0,0.26328074]
[1752070217491,2.01369919,109280.0,109270.0,0.26328074]
[1752070219088,2.01369919,109280.0,109270.0,0.23288074]
[1752070219390,2.01369919,109280.0,109270.0,0.03403024]
[1752070219391,2.02869919,109280.0,109270.0,0.03403024]
[1752070219582,2.06059919,109280.0,109270.0,0.03403024]
[1752070220380,2.06059919,109280.0,109270.0,0.00383024]
[1752070220783,2.06035317,109280.0,109270.0,0.00383024]
[1752070223895,1.66442398,109280.0,109270.0,0.00383024]
[1752070224193,2.06035317,109280.0,109270.0,0.00383024]
[1752070224394,2.04318289,109280.0,109270.0,0.00383024]
[1752070224694,2.04318289,109280.0,109270.0,0.18684074]
[1752070225195,2.04318289,109280.0,109270.0,0.00383024]
[1752070225396,2.06050359,109280.0,109270.0,0.00383024]
[1752070225794,2.06050359,109280.0,109270.0,0.18684064]
[1752070226293,1.6326744,109280.0,109270.0,0.18684064]
[1752070226498,0.9229144,109280.0,109270.0,0.63141983]
[1752070226697,1.5707544,109280.0,109270.0,0.26819064]
[1752070228299,1.5707544,109280.0,109270.0,0.32289666]
[1752070229286,1.5707144,109280.0,109270.0,0.32289666]
[1752070230197,0.6661207,109280.0,109270.0,0.71882585]
[1752070230397,1.2099144,109280.0,109270.0,0.71882585]
[1752070230895,0.6661207,109280.0,109270.0,0.71882585]
[1752070231103,0.8656544,109280.0,109270.0,0.71882585]
[1752070231291,1.2099144,109280.0,109270.0,0.74239585]
[1752070231493,1.2099144,109280.0,109270.0,0.34646666]
[1752070231895,1.2099144,109280.0,109270.0,0.36062705]
[1752070232804,1.2099144,109280.0,109270.0,0.67735475]
[1752070233495,1.2099144,109280.0,109270.0,0.75952044]
[1752070235005,1.2099144,109280.0,109270.0,0.44279274]
[1752070235208,1.2099144,109280.0,109270.0,0.33705705]
[1752070235510,1.5574421,109280.0,109270.0,0.33705705]
[1752070236099,1.5574421,109280.0,109270.0,0.33703098]
[1752070236500,1.5574421,109280.0,109270.0,0.65375868]
[1752070236706,1.2407144,109280.0,109270.0,0.33703098]
[1752070238917,1.2407144,109280.0,109270.0,0.337031]
[1752070241612,1.2407144,109280.0,109270.0,0.28232498]
[1752070242506,1.2407144,109280.0,109270.0,0.24962498]
[1752070242711,1.2407144,109280.0,109270.0,0.29079513]
[1752070243315,1.2407144,109280.0,109270.0,0.34656513]
[1752070244312,1.2407144,109280.0,109270.0,0.66329283]
[1752070244512,1.2099144,109280.0,109270.0,0.71799885]
[1752070245118,0.0183207,109280.0,109270.0,0.62397283]
[1752070245422,1.00832,109290.0,109280.0,0.20205063]
[1752070245614,1.00832,109290.0,109280.0,0.60617751]
[1752070246712,1.00932,109290.0,109280.0,0.60617751]
[1752070247219,1.00932,109290.0,109280.0,0.66088353]
[1752070247416,1.00932,109290.0,109280.0,0.60617751]
[1752070247417,1.1922967,109290.0,109280.0,0.60617751]
[1752070247621,1.1922967,109290.0,109280.0,0.62071869]
[1752070247918,1.1922967,109290.0,109280.0,0.66186449]
[1752070248510,1.1922967,109290.0,109280.0,0.65191869]
[1752070248920,1.1922967,109290.0,109280.0,0.69123869]
[1752070249223,1.1922967,109290.0,109280.0,0.732376]
[1752070249815,0.3618,109290.0,109280.0,0.732376]
[1752070250016,0.001,109290.0,109280.0,0.732376]
[1752070250223,0.001,109290.0,109280.0,1.05203869]
[1752070250520,0.6484,109290.0,109280.0,1.05203869]
[1752070250921,0.001,109290.0,109280.0,1.05203869]
[1752070251311,0.001,109290.0,109280.0,1.13420438]
[1752070251516,0.64836,109290.0,109280.0,1.13420438]
[1752070252214,0.001,109290.0,109280.0,1.05203869]
[1752070252412,0.01706539,109300.0,109290.0,0.1829766]
[1752070252617,0.01706539,109300.0,109290.0,1.34815236]
[1752070253719,0.00013695,109310.0,109300.0,0.18296]
[1752070254023,0.00013695,109310.0,109300.0,1.05228673]
[1752070254824,0.00013695,109310.0,109300.0,1.09336375]